Cogmind - Beta 17 @@@ ROGUE MODE // 2026.07.03 @ 09:18:49 Player: ToBeDefined Result: Destroyed by YC-GQF(R) with Subdweller Laser Performance ------------- Evolutions (0) 0 Regions Visited (2) 400 Robots Destroyed (36) 180 Value Destroyed (659) 659 Prototype IDs (1) 20 Alien Tech Used (0) 0 Bonus (0) 0 TOTAL SCORE: 1259 Bonus ------- None Cogmind --------- Core Integrity 0/250 Matter 284/300 Energy 224/250 System Corruption 3% Temperature Hot (265) Movement Core (600) Ox11 Location -10/Subcaves Parts ------- > --- POWER (1) -------- Ion Engine > --- PROPULSION (2) --- (None) > --- UTILITY (2) ------ Improved Heat Sink Large Storage Unit > --- WEAPON (2) ------- Beamcaster Particle Cannon > --- INVENTORY (15) --- Subdweller Power Source Neutrino Core Improved Heat Sink Scrap Shield Particle Cannon Particle Cannon Particle Cannon Grenade Launcher Mining Laser Peak State ------------ > --- POWER ------------ Ion Engine > --- PROPULSION ------- Light Treads Light Treads > --- UTILITY ---------- Improved Heat Sink Large Storage Unit > --- WEAPON ----------- Particle Cannon Advanced Beam Cannon > --- INVENTORY -------- Ion Engine Ion Engine Light Treads Heat Sink Heat Sink Heat Sink Small Storage Unit Large Storage Unit Particle Cannon Particle Cannon Shotgun Shotgun Shotgun Grenade Launcher Mining Laser [Rating: 14] Favorites ----------- Power Ion Engine Engine Ion Engine Propulsion Light Treads Treads Light Treads Utility Large Storage Unit Device Heat Sink Storage Large Storage Unit Protection Light Armor Plating Weapon Particle Cannon Energy Gun Medium Laser Energy Cannon Particle Cannon Ballistic Gun Shotgun Special Weapon Mining Laser Build | -11 -10 -10 ------- Run | Yrd Mat Sub Slots Evolved . | . . . Power . | . . . Propulsion . | . . . Utility . | . . . Weapon . | . . . Parts Attached 28 | 7 18 3 Power 6 | 1 4 1 Engine 6 | 1 4 1 Core . | . . . Reactor . | . . . Propulsion 3 | 2 1 . Treads 3 | 2 1 . Leg . | . . . Wheel . | . . . Hover . | . . . Flight . | . . . Utility 8 | 2 5 1 Device 4 | 1 2 1 Storage 3 | 1 2 . Processor . | . . . Hackware . | . . . Protection 1 | . 1 . Artifact . | . . . Weapon 11 | 2 8 1 Energy Gun 2 | 1 . 1 Energy Cannon 3 | . 3 . Ballistic Gun 5 | 1 4 . Ballistic Cannon . | . . . Launcher . | . . . Special Weapon 1 | . 1 . Impact Weapon . | . . . Slashing Weapon . | . . . Piercing Weapon . | . . . Special Melee Weapon . | . . . Unidentified Prototypes 1 | . 1 . Parts Lost 10 | . 1 9 Power 3 | . 1 2 Propulsion 3 | . . 3 Utility 1 | . . 1 Weapon 3 | . . 3 Highest Loss Streak 8 | . 1 8 To Critical Strikes 1 | . . 1 Average Backups 11 | 5 12 11 Power 1 | 1 1 1 Propulsion . | 2 . . Utility 2 | . 2 2 Weapon 6 | . 7 6 Tool/Special . | . . . Unused Backups 17 | 2 9 6 Power 1 | 1 . . Propulsion 5 | . 5 . Utility 7 | 1 3 3 Weapon 4 | . 1 3 Tool/Special . | . . . Average Slot Usage (%) 97 | . 98 88 Engine 13 | . 13 14 Treads 26 | . 26 18 Device 8 | . 8 11 Storage 14 | . 14 14 Protection 5 | . 5 2 Energy Cannon 15 | . 15 10 Ballistic Gun 10 | . 9 15 Special Weapon 1 | . 1 . Peak Build Rating 14 | 9 14 14 Average Rating 10 | 7 11 12 On Entrance 6 | . 9 11 Avg Prop Armor Cover (%) 9 | . 9 . Naked Turns . | . . . Heaviest Build 36 | 15 36 34 Greatest Support 40 | 40 40 40 Greatest Overweight (x) 10 | . 1 10 Average Overweight (x) . | . . 1 Largest Inventory Capacity 15 | 8 15 15 Average Capacity 12 | 7 12 15 Most Carried 15 | 8 15 15 Average Carried 11 | 5 12 11 Final Capacity 15 | 8 15 15 Final Carried 15 | 8 15 10 Class Distribution -------------------- 100% | Mutant Dominant Class ---------------- Mutant | -10/Materials Mutant | -10/Subcaves Resources | -11 -10 -10 ----------- Run | Yrd Mat Sub Matter Collected 1340 | 345 800 195 Remotely . | . . . Salvage Created 1188 | 186 774 228 Parts 72 | 15 49 8 Haulers Intercepted 2 | . 2 . Recyclers Shooed 2 | 1 1 . Parts Field Recycled . | . . . Retrieved Matter . | . . . Parts Self-Destructed 5 | . . 5 Prevented . | . . . Parts Restored . | . . . Kills | -11 -10 -10 ------- Run | Yrd Mat Sub Combat Hostiles Destroyed 19 | . 14 5 Guns 16 | . 11 5 Cannons 3 | . 3 . Classes Destroyed 10 | 3 6 1 Worker 3 | 1 2 . Builder 1 | . 1 . Tunneler 6 | 4 2 . Hauler 2 | . 2 . Recycler 3 | 1 2 . Mechanic 1 | . 1 . Watcher 1 | . 1 . Swarmer 6 | . 6 . Grunt 8 | . 8 . Subdweller 5 | . . 5 Best Kill Streak 3 | 2 3 2 Combat Bots Only 3 | . 3 2 Max Kills in Single Turn 2 | 1 2 1 Gunslinging 1 | . 1 . Exploded . | . . . Melee . | . . . Uniques/NPCs Destroyed . | . . . Combat | -11 -10 -10 -------- Run | Yrd Mat Sub Hostile Shots Fired 130 | . 49 81 Missed 36 | . 5 31 Hits 94 | . 44 50 Projectile 94 | . 44 50 Critical Strikes 3 | . 1 2 Damage Taken 1576 | . 552 1024 Core 255 | . 73 182 Absorbed by Shields . | . . . Core Remaining (%) 100 | 100 . . Volleys Fired 111 | 17 69 25 Largest 2 | 2 2 2 Hottest 168 | 70 168 143 Shots Fired 210 | 34 129 47 Gun 137 | 34 73 30 Cannon 62 | . 45 17 Launcher . | . . . Special 11 | . 11 . Kinetic 115 | 17 69 29 Thermal 95 | 17 60 18 Explosive . | . . . Electromagnetic . | . . . Robot Hit Streak 13 | 8 8 13 Robot Miss Streak 6 | 2 6 2 Penetration Max . | . . . Secondary Targets 1 | . 1 . Max Gunslinging Chain 1 | . 1 . Shots Hit Robots 140 | 25 74 41 Core Hits 56 | 7 37 12 Critical Kills 2 | 1 1 . Critical Parts Destroyed . | . . . Critical Strikes 3 | 2 1 . Burn 1 | 1 . . Meltdown 1 | . 1 . Destroy 1 | 1 . . Melee Attacks . | . . . Impact . | . . . Slashing . | . . . Piercing . | . . . Sneak Attacks . | . . . Combat Hostiles . | . . . Follow-up Attacks . | . . . Damage Inflicted 2452 | 316 1349 787 Guns 1689 | 316 831 542 Cannons 739 | . 494 245 Explosions . | . . . Melee . | . . . Ramming . | . . . Kinetic 1481 | 152 807 522 Thermal 971 | 164 542 265 Explosive . | . . . Electromagnetic . | . . . Impact . | . . . Slashing . | . . . Piercing . | . . . Highest Corruption 3 | . 3 3 Average Corruption 2 | . 2 3 Corruption Purged . | . . . Corruption Blocked . | . . . Effects 32 | . 27 5 Message Errors 4 | . 4 . Matter Fused 6 | . 5 1 Heat Flow Errors 7 | . 6 1 Energy Discharges 6 | . 4 2 Data Loss (minor) 7 | . 7 . Data Loss (major) 1 | . 1 . Weapon Failures 1 | . . 1 Overload Shots . | . . . Overflow Damage 15 | . . 15 Projectiles 15 | . . 15 Explosions . | . . . Melee . | . . . Knockbacks . | . . . Impact . | . . . Kinetic . | . . . Secondary . | . . . Self-Inflicted Damage . | . . . Shots . | . . . Rammed . | . . . Targets Rammed . | . . . Kicked . | . . . Crushed . | . . . Highest Temperature 334 | 36 334 71 Average Temperature 77 | 15 89 45 Received Heat Transfer 649 | . 234 415 Effects 1 | . 1 . Short Circuit 1 | . 1 . Siege Activations . | . . . Martial Activations . | . . . Shielding Activations . | . . . Robots Disrupted . | . . . Combat Hostiles . | . . . Robots Corrupted . | . . . Combat Hostiles . | . . . Parts Fried . | . . . Impact Corruptions . | . . . Robots Melted 1 | . 1 . Combat Hostiles . | . . . Parts Melted . | . . . Heat Transferred 2048 | 555 1012 481 Parts Sabotaged . | . . . Parts Stolen . | . . . Parts Stripped . | . . . Power Chain Reactions . | . . . Alert | -11 -10 -10 ------- Run | Yrd Mat Sub Maximum Alert Level . | . . . Low Security (%) 100 | 100 100 . Level 1 . | . . . Level 2 . | . . . Level 3 . | . . . Level 4 . | . . . Level 5 . | . . . High Security . | . . . Max Security . | . . . Peak Influence 90 | 5 90 . Initial . | . . . Average 19 | . 21 . Influence Increases 438 | 30 408 . Destroy 0b10 Robot/C 280 | . 280 . Destroy 0b10 Robot/NC 85 | 30 55 . Destroy Leader 66 | . 66 . Destroy Structure 7 | . 7 . Influence Decreases 438 | 30 368 40 Entered New Map 20 | . . 20 Time Decay 398 | 30 358 10 Lost Part 20 | . 10 10 Squads Dispatched 2 | . 2 . Investigation . | . . . Extermination . | . . . Reinforcement 2 | . 2 . Assault . | . . . Garrison . | . . . Intercept . | . . . Searches Triggered . | . . . Construction Impeded . | . . . Haulers Reinforced . | . . . Active Scanning Responses . | . . . Cargo Convoy Interrupts . | . . . Stealth | -11 -10 -10 --------- Run | Yrd Mat Sub Distress Signals 1 | . 1 . Communications Jammed . | . . . Distress Signals . | . . . Times Spotted 38 | . 25 13 Peak Tracking Total 8 | . 3 8 Tactical Retreats 1 | . . 1 Traps | -11 -10 -10 ------- Run | Yrd Mat Sub Traps Triggered 9 | . 9 . Indirectly . | . . . Trap Hack Attempts . | . . . Triggered . | . . . Disarmed . | . . . Reprogrammed . | . . . Reused . | . . . Traps Extracted . | . . . Installed . | . . . Triggered . | . . . Machines | -11 -10 -10 ---------- Run | Yrd Mat Sub Machines Disabled . | . . . Max in Single Turn . | . . . Machines Repaired . | . . . Machines Dismantled . | . . . Machines Sabotaged . | . . . Overloaded Fab Kills . | . . . Hacking | -11 -10 -10 --------- Run | Yrd Mat Sub Machines Accessed 5 | . 5 . Terminals 3 | . 3 . Fabricators . | . . . Repair Stations . | . . . Recycling Units 2 | . 2 . Scanalyzers . | . . . Garrison Access . | . . . Total Hacks 13 | . 13 . Successful 7 | . 7 . Failed 6 | . 6 . Catastrophic 1 | . 1 . Database Lockouts . | . . . Manual 6 | . 6 . Terminals 11 | . 11 . Fabricators . | . . . Repair Stations . | . . . Recycling Units 2 | . 2 . Scanalyzers . | . . . Garrison Access . | . . . Terminal Hacks 5 | . 5 . Alert Level 3 | . 3 . Recall Investigation 1 | . 1 . Hauler Manifests 1 | . 1 . Fabricator Hacks . | . . . Repair Station Hacks . | . . . Recycling Unit Hacks 2 | . 2 . Retrieve Components 2 | . 2 . Scanalyzer . | . . . Garrison Access Hacks . | . . . Unauthorized Hacks . | . . . Terminals . | . . . Fabricators . | . . . Repair Stations . | . . . Recycling Units . | . . . Scanalyzers . | . . . Garrison Access . | . . . Data Cores Recovered . | . . . Used . | . . . Hacking Detections 4 | . 4 . Full Trace Events 1 | . 1 . Feedback Events . | . . . Feedback Blocked . | . . . Robot Schematics Acquired . | . . . Robots Built . | . . . Authchips . | . . . Time . | . . . Total Robot Build Rating . | . . . Part Schematics Acquired . | . . . Parts Built . | . . . Authchips . | . . . Time . | . . . Total Part Build Rating . | . . . Part Studies Acquired . | . . . Parts Repaired . | . . . Time . | . . . Parts Recycled . | . . . Recycled Matter . | . . . Retrieved Matter . | . . . Retrieved Components 15 | . 15 . Parts Scanalyzed . | . . . Part Schematics Acquired . | . . . Parts Damaged . | . . . Bothacking | -11 -10 -10 ------------ Run | Yrd Mat Sub Used RIF Installer . | . . . Robots Hacked . | . . . Non-combat . | . . . Combat . | . . . Robot Hacks Applied . | . . . Relay Couplers Released . | . . . Fabnet Peak Effective % . | . . . Robots Rewired . | . . . Allies Hacked . | . . . Hacks Repelled . | . . . Allies | -11 -10 -10 -------- Run | Yrd Mat Sub Total Allies . | . . . Largest Group . | . . . Highest-Rated Group . | . . . Highest-Rated Ally . | . . . Total Orders . | . . . Ally Attacks . | . . . Total Damage . | . . . Kills . | . . . Allies Corrupted . | . . . Allies Melted . | . . . Intel | -11 -10 -10 ------- Run | Yrd Mat Sub Active Infowar (turns) 479 | 164 315 . Terrain 479 | 164 315 . Robot Analysis Total . | . . . Derelict Logs Recovered . | . . . Drone Launches . | . . . Drone Recoveries . | . . . Exploration | -11 -10 -10 ------------- Run | Yrd Mat Sub Turns Passed 2480 | 242 1995 243 Spaces Moved 1055 | 109 879 67 Core 13 | 3 . 10 Treads 1042 | 106 879 57 Legs . | . . . Wheels . | . . . Hover . | . . . Flight . | . . . Fastest Speed 50 | 50 160 160 Average Speed 184 | 156 185 220 Slowest Speed 550 | 160 240 550 Overloaded Moves . | . . . Propulsion Burnouts . | . . . Robots Hopped . | . . . Potential Cave-ins . | . . . Cave-ins Triggered . | . . . Exploration Rate (%) 25 | 4 66 6 Regions Visited 2 Branch Regions 1 Pre-discovered Areas . | . . . Known Exits Taken . | . . . Unknown Exits Taken 2 | 1 1 . Scrap Searched . | . . . Spaces Dug 5 | . 5 . Terrain Destroyed 7 | . 7 . Melee . | . . . Projectile 7 | . 7 . AOE . | . . . Terrain Rammed . | . . . Walls Destroyed . | . . . Machines Disabled . | . . . Actions | -11 -10 -10 --------- Run | Yrd Mat Sub Total 1340 | 144 1082 114 Wait 49 | . 44 5 Move 1053 | 108 878 67 Hop . | . . . Pick Up 33 | 10 20 3 Fast Attach 18 | 7 11 . Attach 9 | . 2 7 Detach . | . . . Swap 43 | . 38 5 Drop 24 | 2 20 2 Fire 111 | 17 69 25 Melee . | . . . Ram . | . . . Kick . | . . . Crush . | . . . Escape Stasis . | . . . Rewire . | . . . Trap . | . . . Miscellaneous . | . . . Route ------- -11/Scrapyard -10/Materials (discovered 4 exits: [*Mat x2] / [*Min] / [*Sub]) -10/Subcaves History --------- Turn | Location | Event 8 | -11/Scrapyard | Discovered new exit (range 15) 243 | -11/Scrapyard | Entered Materials 345 | -10/Materials | Build established: Mutant 603 | -10/Materials | Discovered new exit (range 16) 728 | -10/Materials | Discovered new exit (range 6) 1714 | -10/Materials | Discovered new exit (range 16) 2223 | -10/Materials | Discovered new exit (range 9) 2238 | -10/Materials | Entered Subcaves 2239 | -10/Subcaves | Approached by a straggling Scientist 2340 | -10/Subcaves | Ambushed by swarm of Subdwellers 2342 | -10/Subcaves | Ambushed by Subdwellers from Twisted Machinery 2342 | -10/Subcaves | Ambushed by Subdwellers from Twisted Machinery 2393 | -10/Subcaves | Lost 5 allies 2394 | -10/Subcaves | Core integrity fell below 50% 2426 | -10/Subcaves | Core integrity fell below 20% 2434 | -10/Subcaves | Lost 8 parts (2p3n3w) 2481 | -10/Subcaves | Destroyed by YC-GQF(R) with Subdweller Laser Last Messages --------------- to Scrap Shield. 02423_ Destroyed Scrap Shield. 02424_ Subatomizers dissect the Sub. Power Source. 02426_ AM-M0S(R) destroyed. 02440_ Acquired Neutrino Core. 02452_ Acquired Sub. Power Source. 02453_ Acquired 54 matter. 02460_ Heat Sink fries itself beyond repair. 02461_ Subatomizers dissect the Sub. Power Source. 02464_ YC-GQF(R) affixes Scrap Shield Fragment to Scrap Shield. 02469_ System corrupted: Matter fused (-6). 02471_ Subatomizers dissect the Sub. Power Source. 02475_ Acquired Beamcaster. 02480_ System corrupted: Beamcaster failed to cycle. 02481_ Critical hit (Meltdown: +250). Map ----- +----------------------------------------------------+ | ????????????????????#### ##??????????????? | | ???????????????????## ## #??????????????? | | ??????????????###### ##?????????????? | | ???????????#### #?????????????? | | ??????????## ! #?????????????? | | ????????### ! #?????????????? | | ????????# #?????????????? | | ????????# ### #?????????????? | | ????????# #??# ##?????????????? | | ????????## ???#### #??????????????? | | ?????????# #???????## #??????????????? | | ?????????##?????????# #??????????????? | | ????????????????????### # #??????????????? | | ?????????????????????# ##?????????????? | | ???????? ?????????#### #?????????????? | | ???????? ????# " ##?????????????? | | ?????????# ### #% ##?????????????? | | ?????????# #?????????????? | | ?????????# % #?????????????? | | ????????# ## ##?????????????? | | ???????? ?????# ## #?????????????? | | ?????????????????# ## = ##?????????????? | | ?????????????????###"####!=!##?????????????? | | ??????????????????# #???#%[!*#?????????????? | | ??????????????????##????#=%*##?????????????? | | ???????????????????????##@=##??????????????? | | ???????????????????????# %*"#??????????????? | | ???????????????????????#% !##??????????????? | | ???????????????????????#% %##??????????????? | | ???????????????????????#*! %#??????????????? | | ???????????????????????#! #??????????????? | | ???????????????????????# RR!#??????????????? | | ?????????????????????#####!%#??????????????? | | ????????????# ?????# ## %#??????????????? | | ????????????# ### [&#??????????????? | | ??????????? #??????????????? | | ?????????? #??????????????? | | ??????????? #??????????????? | | ??????????? #??????????????? | | ??????????? #### ##??????????????? | | ???????????? ###????## #???????????????? | | ???????????? ?????????# ???????????????? | | ????????????????????????# ???????????????? | | ????????????????????????# ???????????????? | | ????????????????????????# ???????????????? | | ????????????????????????# ##??????????????? | | ????????????????????????####???????????????? | | ???????????????????????????????????????????? | | ???????????????????????????????????????????? | | ???????????????????????????????????????????? | +----------------------------------------------------+ Best States ------------- Heat Dissipation 39 Energy Generation 10 Energy Capacity 250 Matter Stores 300 Matter Capacity 300 Sight Range 16 Terrain Scan Range 16 Terrain Scan Density 10 Armor Coverage 150 Evasion (%) 40 Recoil Reduction 2 Item Schematics ----------------- None Robot Schematics ------------------ None Fabricated ------------ Nothing Repaired ---------- Nothing Studied --------- None Alien Tech Used ----------------- None Achievements -------------- None Challenges ------------ None Game ------ Seed OvertunedStasisExtractor Manual? 0 Play Time 00:24:41 Cumulative 41.4 hours Start 2026.07.03 @ 08:55:07 End 2026.07.03 @ 09:18:49 Sessions 1 Manual Loads 0 Difficulty Rogue Special Mode None Game No. 41 Rogue 41 Adventurer 0 Explorer 0 Win Type - Total 0 Types 0/0/0/0/0/0/0/0/0/0 Lore% 20 Gallery% 21 Achievement% 18 Wizard Run 0 Options --------- Layout 1 ASCII 0 Keyboard 0 Movement Mouse Keybinds 0 Fullscreen 1 Font 24/Smallcaps Map View 50x35 Zoom Use 0% Tactical HUD 1 Map Filters NONE Filters NONE Steam 1 RUN: 04c57104-e2eb-4a2c-816c-019b58f27022